Cogmind - Beta 16.1 @@@ ROGUE MODE // 2026.04.04 @ 18:03:58 Player: Rainbow Dash Result: Destroyed by Piercing Trap Performance ------------- Evolutions (0) 0 Regions Visited (3) 600 Robots Destroyed (24) 120 Value Destroyed (395) 395 Prototype IDs (3) 60 Alien Tech Used (0) 0 Bonus (0) 0 TOTAL SCORE: 1175 Bonus ------- None Cogmind --------- Core Integrity 0/250 Matter 280/300 Energy 124/125 System Corruption 0% Temperature Cool (0) Movement Rolling (80) Location -10/Subcaves Parts ------- > --- POWER (1) -------- Light Ion Engine > --- PROPULSION (2) --- Wheel > --- UTILITY (2) ------ Seismic Detector > --- WEAPON (2) ------- Medium Laser > --- INVENTORY (5) ---- Structural Scanner Peak State ------------ > --- POWER ------------ Light Ion Engine > --- PROPULSION ------- Light Treads Light Treads > --- UTILITY ---------- Small Storage Unit Seismic Detector > --- WEAPON ----------- Medium Laser Small Laser > --- INVENTORY -------- Ion Engine Light Ion Engine Wheel Heat Sink Improved Heat Sink EM Pulse Gun Small Laser Light Assault Rifle [Rating: 8] Favorites ----------- Power Light Ion Engine Engine Light Ion Engine Propulsion Light Treads Treads Light Treads Wheel Wheel Utility Seismic Detector Device Seismic Detector Storage Large Storage Unit Protection Light Armor Plating Weapon Light Assault Rifle Energy Gun Medium Laser Ballistic Gun Light Assault Rifle Build | -11 -10 -10 -10 ------- Run | Yrd Mat Min Sub Slots Evolved . | . . . . Power . | . . . . Propulsion . | . . . . Utility . | . . . . Weapon . | . . . . Parts Attached 20 | 7 9 2 2 Power 3 | 1 1 . 1 Engine 3 | 1 1 . 1 Core . | . . . . Reactor . | . . . . Propulsion 5 | 2 . 2 1 Treads 4 | 2 . 2 . Leg . | . . . . Wheel 1 | . . . 1 Hover . | . . . . Flight . | . . . . Utility 6 | 2 4 . . Device 2 | 1 1 . . Storage 2 | 1 1 . . Processor . | . . . . Hackware . | . . . . Protection 2 | . 2 . . Artifact . | . . . . Weapon 6 | 2 4 . . Energy Gun 2 | 2 . . . Energy Cannon . | . . . . Ballistic Gun 4 | . 4 . . Ballistic Cannon . | . . . . Launcher . | . . . . Special Weapon . | . . . . Impact Weapon . | . . . . Slashing Weapon . | . . . . Piercing Weapon . | . . . . Special Melee Weapon . | . . . . Unidentified Prototypes . | . . . . Parts Lost 8 | . 2 6 . Power 2 | . 1 1 . Propulsion 1 | . . 1 . Utility 3 | . 1 2 . Weapon 2 | . . 2 . Highest Loss Streak 6 | . 1 6 . To Critical Strikes 1 | . 1 . . Average Backups 9 | 2 9 14 2 Power . | . 1 1 . Propulsion 2 | . 2 3 . Utility 2 | . 2 4 1 Weapon 2 | . 2 3 . Tool/Special . | . . . . Unused Backups 12 | . 5 6 1 Power 1 | . 1 . . Propulsion 2 | . . 2 . Utility 5 | . 2 2 1 Weapon 3 | . 2 1 . Tool/Special 1 | . . 1 . Average Slot Usage (%) 91 | . 99 96 30 Engine 12 | . 13 13 3 Treads 24 | . 28 27 . Device 10 | . 9 13 10 Storage 12 | . 14 13 . Protection 3 | . 4 . . Energy Gun 8 | . 10 . 12 Ballistic Gun 17 | . 17 27 . Peak Build Rating 8 | 7 8 8 4 Average Rating 7 | 5 7 7 2 On Entrance 3 | . 7 8 . Avg Prop Armor Cover (%) . | . . . . Naked Turns 11 | . . 6 5 Heaviest Build 30 | 12 30 28 6 Greatest Support 40 | 40 40 40 10 Greatest Overweight (x) . | . . . . Average Overweight (x) . | . . . . Largest Inventory Capacity 15 | 8 15 15 5 Average Capacity 11 | 7 11 14 5 Most Carried 15 | 3 15 15 5 Average Carried 9 | 2 9 14 2 Final Capacity 15 | 8 15 5 5 Final Carried 15 | 3 15 5 1 Class Distribution -------------------- 100% | Mutant Dominant Class ---------------- Mutant | -10/Materials Mutant | -10/Mines Mutant | -10/Subcaves Resources | -11 -10 -10 -10 ----------- Run | Yrd Mat Min Sub Matter Collected 516 | 270 196 23 27 Remotely . | . . . . Salvage Created 711 | 122 551 . 38 Parts 45 | 4 38 . 3 Haulers Intercepted 2 | . 2 . . Recyclers Shooed . | . . . . Parts Field Recycled . | . . . . Retrieved Matter . | . . . . Parts Self-Destructed 9 | . . . 9 Prevented . | . . . . Parts Restored . | . . . . Kills | -11 -10 -10 -10 ------- Run | Yrd Mat Min Sub Combat Hostiles Destroyed 18 | . 16 . 2 Guns 18 | . 16 . 2 Classes Destroyed 7 | 2 5 . . Worker 1 | . 1 . . Tunneler 1 | 1 . . . Hauler 2 | . 2 . . Recycler 1 | 1 . . . Watcher 1 | . 1 . . Swarmer 11 | . 9 . 2 Grunt 7 | . 7 . . Best Kill Streak 4 | 2 4 . 1 Combat Bots Only 3 | . 3 . 1 Max Kills in Single Turn 1 | 1 1 . 1 Gunslinging . | . . . . Exploded . | . . . . Melee . | . . . . Uniques/NPCs Destroyed . | . . . . Combat | -11 -10 -10 -10 -------- Run | Yrd Mat Min Sub Hostile Shots Fired 111 | . 79 15 17 Missed 25 | . 17 . 8 Hits 86 | . 62 15 9 Projectile 86 | . 62 15 9 AOE 15 | . . 15 . Critical Strikes 1 | . 1 . . Damage Taken 1238 | . 589 542 107 Core 254 | . 49 153 52 Absorbed by Shields . | . . . . Core Remaining (%) 100 | 100 . . . Volleys Fired 86 | 6 65 3 12 Largest 2 | 2 2 2 1 Hottest 90 | 90 90 40 50 Shots Fired 159 | 12 129 6 12 Gun 159 | 12 129 6 12 Cannon . | . . . . Launcher . | . . . . Special . | . . . . Kinetic 100 | . 94 6 . Thermal 59 | 12 35 . 12 Explosive . | . . . . Electromagnetic . | . . . . Robot Hit Streak 14 | 3 14 3 4 Robot Miss Streak 5 | 2 5 2 1 Penetration Max . | . . . . Secondary Targets . | . . . . Shots Hit Robots 98 | 7 78 4 9 Core Hits 44 | 3 37 2 2 Critical Kills . | . . . . Critical Parts Destroyed . | . . . . Critical Strikes 3 | . 1 . 2 Burn 3 | . 1 . 2 Melee Attacks . | . . . . Impact . | . . . . Slashing . | . . . . Piercing . | . . . . Sneak Attacks . | . . . . Combat Hostiles . | . . . . Follow-up Attacks . | . . . . Damage Inflicted 1007 | 80 773 41 113 Guns 1007 | 80 773 41 113 Cannons . | . . . . Explosions . | . . . . Melee . | . . . . Ramming . | . . . . Kinetic 518 | . 477 41 . Thermal 489 | 80 296 . 113 Explosive . | . . . . Electromagnetic . | . . . . Impact . | . . . . Slashing . | . . . . Piercing . | . . . . Highest Corruption . | . . . . Average Corruption . | . . . . Corruption Purged . | . . . . Corruption Blocked . | . . . . Overload Shots . | . . . . Overflow Damage . | . . . . Projectiles . | . . . . Explosions . | . . . . Melee . | . . . . Knockbacks . | . . . . Impact . | . . . . Kinetic . | . . . . Secondary . | . . . . Self-Inflicted Damage . | . . . . Shots . | . . . . Rammed . | . . . . Targets Rammed 1 | . 1 . . Kicked . | . . . . Crushed 1 | . 1 . . Highest Temperature 214 | 180 214 . . Average Temperature 60 | 92 54 . . Received Heat Transfer 174 | . 174 . . Siege Activations . | . . . . Martial Activations . | . . . . Shielding Activations . | . . . . Robots Disrupted . | . . . . Combat Hostiles . | . . . . Robots Corrupted . | . . . . Combat Hostiles . | . . . . Parts Fried . | . . . . Impact Corruptions . | . . . . Robots Melted . | . . . . Combat Hostiles . | . . . . Parts Melted 2 | 1 1 . . Heat Transferred 1523 | 211 831 . 481 Parts Sabotaged . | . . . . Parts Stolen . | . . . . Parts Stripped . | . . . . Power Chain Reactions . | . . . . Alert | -11 -10 -10 -10 ------- Run | Yrd Mat Min Sub Maximum Alert Level . | . . . . Low Security (%) 100 | 100 100 100 . Level 1 . | . . . . Level 2 . | . . . . Level 3 . | . . . . Level 4 . | . . . . Level 5 . | . . . . High Security . | . . . . Max Security . | . . . . Peak Influence 179 | 10 179 32 . Initial 32 | . . 32 . Average 56 | . 74 4 . Influence Increases 638 | 10 528 15 85 Destroy 0b10 Robot/C 360 | . 320 . 40 Destroy 0b10 Robot/NC 30 | 10 20 . . Destroy Leader 76 | . 76 . . Successful Hack 52 | . 52 . . Lose Combat Pursuer 120 | . 60 15 45 Influence Decreases 633 | 10 444 99 80 Entered New Map 52 | . . 52 . Time Decay 556 | 10 424 42 80 Lost Part 25 | . 20 5 . Squads Dispatched 4 | . 4 . . Investigation . | . . . . Extermination . | . . . . Reinforcement 4 | . 4 . . Assault . | . . . . Garrison . | . . . . Intercept . | . . . . Searches Triggered . | . . . . Construction Impeded . | . . . . Haulers Reinforced . | . . . . Active Scanning Responses . | . . . . Cargo Convoy Interrupts . | . . . . Stealth | -11 -10 -10 -10 --------- Run | Yrd Mat Min Sub Distress Signals 5 | . 5 . . Communications Jammed . | . . . . Distress Signals . | . . . . Times Spotted 43 | . 32 4 7 Peak Tracking Total 6 | . 6 2 3 Tactical Retreats 5 | . 2 1 2 Traps | -11 -10 -10 -10 ------- Run | Yrd Mat Min Sub Traps Triggered 2 | . 1 . 1 Indirectly . | . . . . Trap Hack Attempts . | . . . . Triggered . | . . . . Disarmed . | . . . . Reprogrammed . | . . . . Reused . | . . . . Traps Extracted . | . . . . Installed . | . . . . Triggered . | . . . . Machines | -11 -10 -10 -10 ---------- Run | Yrd Mat Min Sub Machines Disabled . | . . . . Max in Single Turn . | . . . . Machines Repaired . | . . . . Machines Dismantled . | . . . . Machines Sabotaged . | . . . . Overloaded Fab Kills . | . . . . Hacking | -11 -10 -10 -10 --------- Run | Yrd Mat Min Sub Machines Accessed 8 | . 7 . 1 Terminals 6 | . 6 . . Fabricators . | . . . . Repair Stations . | . . . . Recycling Units 1 | . 1 . . Scanalyzers . | . . . . Garrison Access . | . . . . Total Hacks 25 | . 21 . 4 Successful 18 | . 14 . 4 Failed 7 | . 7 . . Catastrophic 1 | . 1 . . Database Lockouts . | . . . . Manual 15 | . 15 . . Terminals 19 | . 19 . . Fabricators . | . . . . Repair Stations . | . . . . Recycling Units 2 | . 2 . . Scanalyzers . | . . . . Garrison Access . | . . . . Terminal Hacks 8 | . 4 . 4 Record 4 | . . . 4 Prototype ID Bank 2 | . 2 . . Terminal Index 1 | . 1 . . Locate Traps 1 | . 1 . . Fabricator Hacks . | . . . . Repair Station Hacks . | . . . . Recycling Unit Hacks 1 | . 1 . . Retrieve Components 1 | . 1 . . Scanalyzer . | . . . . Garrison Access Hacks . | . . . . Unauthorized Hacks 9 | . 9 . . Terminals 8 | . 8 . . Track 1 | . 1 . . Botnet 2 | . 2 . . Skim 5 | . 5 . . Fabricators . | . . . . Repair Stations . | . . . . Recycling Units 1 | . 1 . . Mask 1 | . 1 . . Scanalyzers . | . . . . Garrison Access . | . . . . Data Cores Recovered . | . . . . Used . | . . . . Hacking Detections 6 | . 6 . . Full Trace Events . | . . . . Feedback Events . | . . . . Feedback Blocked . | . . . . Robot Schematics Acquired . | . . . . Robots Built . | . . . . Authchips . | . . . . Time . | . . . . Total Robot Build Rating . | . . . . Part Schematics Acquired . | . . . . Parts Built . | . . . . Authchips . | . . . . Time . | . . . . Total Part Build Rating . | . . . . Part Studies Acquired . | . . . . Parts Repaired . | . . . . Time . | . . . . Parts Recycled . | . . . . Recycled Matter . | . . . . Retrieved Matter . | . . . . Retrieved Components . | . . . . Parts Scanalyzed . | . . . . Part Schematics Acquired . | . . . . Parts Damaged . | . . . . Bothacking | -11 -10 -10 -10 ------------ Run | Yrd Mat Min Sub Used RIF Installer . | . . . . Robots Hacked . | . . . . Non-combat . | . . . . Combat . | . . . . Robot Hacks Applied . | . . . . Relay Couplers Released . | . . . . Fabnet Peak Effective % . | . . . . Robots Rewired . | . . . . Allies Hacked . | . . . . Hacks Repelled . | . . . . Allies | -11 -10 -10 -10 -------- Run | Yrd Mat Min Sub Total Allies . | . . . . Largest Group . | . . . . Highest-Rated Group . | . . . . Highest-Rated Ally . | . . . . Total Orders . | . . . . Ally Attacks . | . . . . Total Damage . | . . . . Kills . | . . . . Allies Corrupted . | . . . . Allies Melted . | . . . . Intel | -11 -10 -10 -10 ------- Run | Yrd Mat Min Sub Active Infowar (turns) 1301 | 16 858 290 137 Seismic 1301 | 16 858 290 137 Robot Analysis Total . | . . . . Derelict Logs Recovered 1 | . . . 1 Drone Launches . | . . . . Drone Recoveries . | . . . . Exploration | -11 -10 -10 -10 ------------- Run | Yrd Mat Min Sub Turns Passed 1879 | 133 1269 302 175 Spaces Moved 1150 | 67 640 188 255 Core 220 | 4 . 11 205 Treads 880 | 63 640 177 . Legs . | . . . . Wheels 50 | . . . 50 Hover . | . . . . Flight . | . . . . Fastest Speed 50 | 50 160 50 50 Average Speed 135 | 153 160 153 55 Slowest Speed 160 | 160 160 160 80 Overloaded Moves . | . . . . Propulsion Burnouts . | . . . . Robots Hopped . | . . . . Potential Cave-ins . | . . . . Cave-ins Triggered . | . . . . Exploration Rate (%) 45 | 4 95 53 28 Regions Visited 3 Branch Regions 2 Pre-discovered Areas 1 | . . . 1 Known Exits Taken . | . . . . Unknown Exits Taken 3 | 1 1 1 . Scrap Searched 2 | . . 1 1 Spaces Dug . | . . . . Terrain Destroyed . | . . . . Melee . | . . . . Projectile . | . . . . AOE . | . . . . Terrain Rammed . | . . . . Walls Destroyed . | . . . . Machines Disabled . | . . . . Actions | -11 -10 -10 -10 --------- Run | Yrd Mat Min Sub Total 1326 | 82 773 195 276 Wait 36 | . 31 . 5 Move 1147 | 66 639 187 255 Hop . | . . . . Pick Up 21 | 3 18 . . Fast Attach 8 | 7 1 . . Attach 8 | . 2 2 4 Detach . | . . . . Swap 11 | . 9 2 . Drop 8 | . 7 1 . Fire 86 | 6 65 3 12 Melee . | . . . . Ram . | . . . . Kick . | . . . . Crush 1 | . 1 . . Escape Stasis . | . . . . Rewire . | . . . . Trap . | . . . . Miscellaneous . | . . . . Route ------- -11/Scrapyard -10/Materials (discovered 4 exits: [*Mat x3] / [*Min]) -10/Mines -10/Subcaves History --------- Turn | Location | Event 3 | -11/Scrapyard | Discovered new exit (range 15) 134 | -11/Scrapyard | Entered Materials 282 | -10/Materials | Discovered new exit (range 15) 310 | -10/Materials | Build established: Mutant 444 | -10/Materials | Discovered new exit (range 8) 634 | -10/Materials | Derelicts attacked the area 665 | -10/Materials | Discovered new exit (range 12) 1206 | -10/Materials | Discovered new exit (range 10) 1403 | -10/Materials | Entered Mines 1408 | -10/Mines | Met a Derelict bent on vengeance 1654 | -10/Mines | Assembled infested the area 1687 | -10/Mines | Discovered new exit (range 14) 1698 | -10/Mines | Core integrity fell below 50% 1699 | -10/Mines | Released all parts (3) 1702 | -10/Mines | Core integrity fell below 20% 1705 | -10/Mines | Entered Subcaves 1706 | -10/Subcaves | Approached by a straggling Scientist 1730 | -10/Subcaves | Lost 6 parts (1p1n2u2w) 1773 | -10/Subcaves | Shifting Twisted Machinery released Sub. Laser 1827 | -10/Subcaves | Visited Clippyterm 1828 | -10/Subcaves | Learned Factory emergency access door positions 1853 | -10/Subcaves | A swath of the cavern ceiling suddenly collapsed 1880 | -10/Subcaves | Destroyed by Piercing Trap Last Messages --------------- the algorithm, because no matter how much data I collect to feed it, half the time it still manages to suggest unhelpful sample queries and responses. --DD-NU8 >>Record! "Hide-and-Seek" It looks like you're trying to avoid detection, would you like help? Data stored: Factory emergency access points. >>Record "01-MTF" It looks like you're after the notorious thief from 0b1. I don't know where they are, but my data indicates that someone they're looking for is frequently seen in Scraptown. >>Record! "Optimus" It looks like you're curious about the current leader of 0bPrime. Optimus is well liked, but certainly not being up front with the UFD as a whole. 01828_ MG-AUF(u) builds Twisted Machinery. 01853_ 50 Matter crushed. A swath of the cavern ceiling suddenly collapses. 01880_ Triggered Piercing Trap. 01880_ Spikes shoot up from the floor. 01880_ Critical hit (Impale). Map ----- +----------------------------------------------------+ | | | ?????????????????????????????????????????????????? | | ?????????????????????????????????????????????????? | | ?????????????????????????????????????????????????? | | ?????????????????????????????????????????????????? | | ?????????????????????????????????????????????????? | | ?????????????????????????????????????????????????? | | ?????????????????????????????????????????????????? | | ?????????????????????????????????????????????????? | | ?????????????????????????????????????????????????? | | ?????????????????????????????????????????????????? | | ?????????????????????????????????????????????????? | | ?????????????????????????????????????????????????? | | ?????????????????????????????????????????????????? | | ?????????????????????????????????????????????????? | | ####?###?????????????????????????????????????????? | | # ## ???############??????????????????????????? | | #?## ## #####??????????????????????? | | ## ## ##?????????#???????????? | | ? ##?????? ????????????? | | ??? ###?? #?????????????? | | ##????# ## # #????????????? | | ###### ??????????????? | | ????# # ## #?????????????????? | | ???????# #?????????????????? | | ???????## @ ^ #?????????????????? | | ???###### ## # #### #?????????????????? | | ???# ######???######?????????????????? | | ???# ##???????????????????????????????? | | ???# #????????????????????????????????? | | ??## ### #????????????????????????????????? | | ?## #?## #???????????????????????????????? | | ?# #??#####???????????????????????????????? | | ?## ##?????????????????????????????????????? | | ??# #?????????????????????????????????????? | | ?# # ##?????????????????????????????????????? | | ?###### ##??????????????????????????????????????? | | ?????# #??????????????????????????????????????? | | ????## ##??????????????????????????????????????? | | ????# #???????????????????????????????????????? | | ?##?## ##??????????????????????????????????????? | | # #### ##?????????????????????????????????????? | | % # #?????????????????????????????????????? | | # #?????????????????????????????????????? | | ???# # ##?????????????????????????????????????? | | ???##### #??????????????????????????????????????? | | ???????# #??????????????????????????????????????? | | #??????# #??????????????????????????????????????? | | ######## #??????????????????????????????????????? | | # # ## #??????????????????????????????????????? | +----------------------------------------------------+ Best States ------------- Heat Dissipation 25 Energy Generation 10 Energy Capacity 250 Matter Stores 300 Matter Capacity 300 Sight Range 16 Terrain Scan Density 10 Armor Coverage 150 Evasion (%) 50 Recoil Reduction 2 Item Schematics ----------------- None Robot Schematics ------------------ None Fabricated ------------ Nothing Repaired ---------- Nothing Studied --------- None Alien Tech Used ----------------- None Achievements -------------- None Challenges ------------ None Game ------ Seed PlexusSuspensionPod Manual? 0 Play Time 00:16:55 Cumulative 149.8 hours Start 2026.04.04 @ 17:47:10 End 2026.04.04 @ 18:03:58 Sessions 1 Manual Loads 0 Difficulty Rogue Special Mode None Game No. 136 Rogue 91 Adventurer 45 Explorer 0 Win Type - Total 3 Types 2/0/0/1/0/0/0/0/0/0 Lore% 73 Gallery% 60 Achievement% 43 Wizard Run 0 Options --------- Layout 0 ASCII 1 Keyboard 1 Movement Numpad Keybinds 0 Fullscreen 1 Font 24/Smallcaps Map View 76x50 Zoom Use 0% Tactical HUD 1 Map Filters NONE Filters NONE Steam 1 RUN: 07baa060-fb9c-4d63-8950-5353f65bd3a7